[Event "European Rapid Championship 2021"]
[Site "Katowice"]
[Date "2021.12.19"]
[Round "11.26"]
[White "Papasimakopoulos, Alexandros"]
[Black "Smieszek, Wojciech"]
[Result "1/2-1/2"]
[ECO "A61"]
[WhiteElo "2274"]
[BlackElo "2033"]
[Annotator "NA"]
[PlyCount "133"]
[EventDate "2021.12.18"]
[EventType "swiss"]
[EventCountry "POL"]
[SourceTitle "playchess.com"]
[Source "ChessBase"]
[SourceQuality "1"]
[TimeControl "900+10"]

1. d4 {[%emt 0:00:02]} Nf6 {[%emt 0:00:01]} 2. c4 {[%emt 0:00:01]} c5 {[%emt 0:
00:01]} 3. d5 {[%emt 0:00:02]} e6 {[%emt 0:00:01]} 4. Nc3 {[%emt 0:00:01]} exd5
{[%emt 0:00:02]} 5. cxd5 {[%emt 0:00:01]} d6 {[%emt 0:00:00]} 6. Nf3 {[%emt 0:
00:02]} g6 {[%emt 0:00:02]} 7. Bf4 {[%emt 0:00:01]} Bg7 {[%emt 0:00:12]} 8.
Qa4+ {[%emt 0:00:01]} Bd7 {[%emt 0:00:01]} 9. Qb3 {[%emt 0:00:01]} Qc7 {
[%emt 0:00:02]} 10. e4 {[%emt 0:00:02]} O-O {[%emt 0:00:04]} 11. Be2 {[%emt 0:
00:01]} Nh5 {[%emt 0:00:07]} 12. Be3 {[%emt 0:00:11]} f5 {[%emt 0:00:09]} 13.
exf5 {[%emt 0:00:02]} gxf5 {[%emt 0:00:23]} 14. Nd2 {[%emt 0:00:01]} f4 {
[%emt 0:00:16]} 15. Bxc5 {[%emt 0:00:01]} f3 {[%emt 0:00:59]} 16. Bxf3 {
[%emt 0:00:10]} Qxc5 {[%emt 0:01:01]} 17. Bxh5 {[%emt 0:00:06]} Qxf2+ {[%emt 0:
00:18]} 18. Kd1 {[%emt 0:00:01]} Qxg2 {[%emt 0:00:25]} 19. Re1 {[%emt 0:00:17]}
Na6 {[%emt 0:00:51]} 20. Nce4 {[%emt 0:00:49]} Rac8 {[%emt 0:01:38]} 21. Qxb7 {
[%emt 0:00:23]} Bg4+ {[%emt 0:03:24]} 22. Bxg4 {[%emt 0:00:01]} Qxg4+ {[%emt 0:
00:01]} 23. Re2 {[%emt 0:00:01]} Nc5 {[%emt 0:00:26]} 24. Nxc5 {[%emt 0:02:06]}
Rxc5 {[%emt 0:00:03]} 25. Qb3 {[%emt 0:00:13]} Re8 {[%emt 0:00:28]} 26. Qf3 {
[%emt 0:00:02]} Qg1+ {[%emt 0:02:26]} 27. Qf1 {[%emt 0:00:01]} Qxf1+ {[%emt 0:
00:31]} 28. Nxf1 {[%emt 0:00:02]} Rxe2 {[%emt 0:02:22]} 29. Kxe2 {[%emt 0:00:
01]} Rc2+ {[%emt 0:00:01]} 30. Kf3 {[%emt 0:00:17]} Rxb2 {[%emt 0:00:02]} 31.
Rc1 {[%emt 0:00:08]} Rxa2 {[%emt 0:00:12]} 32. Ne3 {[%emt 0:00:54]} Ra3 {
[%emt 0:00:46]} 33. Rc8+ {[%emt 0:00:04]} Kf7 {[%emt 0:00:01]} 34. Ke4 {
[%emt 0:00:05]} Ra1 {[%emt 0:02:54]} 35. Nc4 {[%emt 0:00:19]} Re1+ {[%emt 0:00:
02]} 36. Kf3 {[%emt 0:00:02]} Be5 {[%emt 0:00:28]} 37. Rc7+ {[%emt 0:00:53]}
Kg6 {[%emt 0:00:01]} 38. Rxa7 {[%emt 0:00:02]} Bxh2 {[%emt 0:00:22]} 39. Ra6 {
[%emt 0:00:02]} Rd1 {[%emt 0:00:18]} 40. Ne3 {[%emt 0:00:17]} Rb1 {[%emt 0:00:
08]} 41. Ng4 {[%emt 0:00:04]} Rb3+ {[%emt 0:00:08]} 42. Ke4 {[%emt 0:00:55]}
Rb4+ {[%emt 0:00:02]} 43. Kf3 {[%emt 0:00:03]} Rb3+ {[%emt 0:00:20]} 44. Ke4 {
[%emt 0:00:05]} Rb4+ {[%emt 0:00:01]} 45. Kf3 {[%emt 0:00:02]} Bf4 {[%emt 0:00:
01]} 46. Nf2 {[%emt 0:00:05]} Kf5 {[%emt 0:00:26]} 47. Nd3 {[%emt 0:00:20]} Rb3
{[%emt 0:00:03]} 48. Ke2 {[%emt 0:00:02]} Be5 {[%emt 0:00:22]} 49. Ra7 {
[%emt 0:00:16]} h6 {[%emt 0:00:11]} 50. Rh7 {[%emt 0:00:33]} Kg6 {[%emt 0:00:
06]} 51. Re7 {[%emt 0:00:18]} Kf6 {[%emt 0:00:14]} 52. Re6+ {[%emt 0:00:07]}
Kg5 {[%emt 0:00:10]} 53. Nxe5 {[%emt 0:00:06]} dxe5 {[%emt 0:00:02]} 54. d6 {
[%emt 0:00:08]} Rb8 {[%emt 0:00:12]} 55. Ke3 {[%emt 0:00:32]} Kf5 {[%emt 0:00:
01]} 56. Rxh6 {[%emt 0:00:06]} Rb3+ {[%emt 0:00:01]} 57. Ke2 {[%emt 0:00:05]}
Rb7 {[%emt 0:00:02]} 58. Kd3 {[%emt 0:00:04]} Kg5 {[%emt 0:00:13]} 59. Re6 {
[%emt 0:00:15]} Kf5 {[%emt 0:00:12]} 60. Re7 {[%emt 0:00:06]} Rb6 {[%emt 0:00:
03]} 61. d7 {[%emt 0:00:20]} Rd6+ {[%emt 0:00:02]} 62. Ke3 {[%emt 0:00:17]} Kf6
{[%emt 0:00:03]} 63. Rh7 {[%emt 0:00:02]} Kg6 {[%emt 0:00:14]} 64. Rh8 {
[%emt 0:00:13]} Rxd7 {[%emt 0:00:04]} 65. Ke4 {[%emt 0:00:02]} Kf6 {[%emt 0:00:
03]} 66. Rh6+ {[%emt 0:00:01]} Kg5 {[%emt 0:00:04]} 67. Re6 {[%emt 0:00:03]}
1/2-1/2

[Event "European Rapid Championship 2021"]
[Site "Katowice"]
[Date "2021.12.19"]
[Round "11.27"]
[White "Lubczynski, Rafal"]
[Black "Grzesik, Gracjan"]
[Result "1-0"]
[ECO "A05"]
[WhiteElo "2289"]
[BlackElo "1992"]
[Annotator "NA"]
[PlyCount "63"]
[EventDate "2021.12.18"]
[EventType "swiss"]
[EventCountry "POL"]
[SourceTitle "playchess.com"]
[Source "ChessBase"]
[SourceQuality "1"]
[TimeControl "900+10"]

1. Nf3 {[%emt 0:00:01]} Nf6 {[%emt 0:00:06]} 2. c4 {[%emt 0:00:01]} e6 {
[%emt 0:00:12]} 3. g3 {[%emt 0:00:02]} b6 {[%emt 0:00:54]} 4. Bg2 {[%emt 0:00:
01]} Bb7 {[%emt 0:00:01]} 5. O-O {[%emt 0:00:06]} c5 {[%emt 0:00:26]} 6. d4 {
[%emt 0:00:01]} d6 {[%emt 0:00:32]} 7. Nc3 {[%emt 0:00:15]} cxd4 {[%emt 0:00:
33]} 8. Qxd4 {[%emt 0:00:02]} Be7 {[%emt 0:00:03]} 9. Rd1 {[%emt 0:00:18]} a6 {
[%emt 0:00:29]} 10. Be3 {[%emt 0:00:16]} Nbd7 {[%emt 0:00:18]} 11. Qd2 {
[%emt 0:00:02]} Qc7 {[%emt 0:00:08]} 12. Bf4 {[%emt 0:01:13]} e5 {[%emt 0:00:
38]} 13. Be3 {[%emt 0:00:34]} O-O {[%emt 0:00:42]} 14. Rac1 {[%emt 0:00:32]}
Rac8 {[%emt 0:00:54]} 15. Nh4 {[%emt 0:00:41]} g6 {[%emt 0:00:35]} 16. Bh6 {
[%emt 0:00:12]} Rfe8 {[%emt 0:00:32]} 17. Nf5 {[%emt 0:02:44]} Bxg2 {[%emt 0:
01:12]} 18. Kxg2 {[%emt 0:00:59]} Qb7+ {[%emt 0:00:58]} 19. f3 {[%emt 0:00:03]}
Rc6 {[%emt 0:01:25]} 20. Qg5 {[%emt 0:06:35]} Bd8 {[%emt 0:06:10]} 21. Nxd6 {
[%emt 0:02:28]} Rxd6 {[%emt 0:00:24]} 22. Rxd6 {[%emt 0:00:01]} Ne4 {[%emt 0:
00:43]} 23. Rxd7 {[%emt 0:00:21]} Qxd7 {[%emt 0:00:24]} 24. Qe3 {[%emt 0:00:05]
} Nxc3 {[%emt 0:00:23]} 25. Rxc3 {[%emt 0:00:02]} f5 {[%emt 0:00:15]} 26. Qd3 {
[%emt 0:00:39]} Qc7 {[%emt 0:00:20]} 27. Qd5+ {[%emt 0:00:11]} Kh8 {[%emt 0:00:
02]} 28. c5 {[%emt 0:00:19]} bxc5 {[%emt 0:00:10]} 29. Rxc5 {[%emt 0:00:01]}
Qe7 {[%emt 0:00:07]} 30. Rc8 {[%emt 0:00:53]} Bc7 {[%emt 0:00:22]} 31. Qc5 {
[%emt 0:00:12]} Bd6 {[%emt 0:00:11]} 32. Qxd6 {[%emt 0:00:05]} 1-0

[Event "European Rapid Championship 2021"]
[Site "Katowice"]
[Date "2021.12.19"]
[Round "11.27"]
[White "Brzezinski, Mateusz"]
[Black "Szpar, Milosz"]
[Result "0-1"]
[ECO "A64"]
[WhiteElo "2187"]
[BlackElo "2315"]
[Annotator "NA"]
[PlyCount "88"]
[EventDate "2021.12.18"]
[EventType "swiss"]
[EventCountry "POL"]
[SourceTitle "playchess.com"]
[Source "ChessBase"]
[SourceQuality "1"]
[TimeControl "900+10"]

1. d4 {[%emt 0:00:01]} Nf6 {[%emt 0:00:02]} 2. Nf3 {[%emt 0:00:09]} e6 {
[%emt 0:00:05]} 3. c4 {[%emt 0:00:09]} c5 {[%emt 0:00:06]} 4. d5 {[%emt 0:00:
39]} d6 {[%emt 0:00:09]} 5. Nc3 {[%emt 0:00:11]} exd5 {[%emt 0:00:03]} 6. cxd5
{[%emt 0:01:49]} g6 {[%emt 0:00:04]} 7. g3 {[%emt 0:00:16]} Bg7 {[%emt 0:00:05]
} 8. Bg2 {[%emt 0:00:01]} O-O {[%emt 0:00:16]} 9. O-O {[%emt 0:00:02]} a6 {
[%emt 0:00:05]} 10. a4 {[%emt 0:00:06]} Nbd7 {[%emt 0:00:10]} 11. Nd2 {[%emt 0:
00:56]} Re8 {[%emt 0:00:14]} 12. Re1 {[%emt 0:00:55]} b6 {[%emt 0:00:41]} 13.
Nc4 {[%emt 0:03:29]} Ne5 {[%emt 0:00:15]} 14. Nxe5 {[%emt 0:00:01]} Rxe5 {
[%emt 0:00:05]} 15. e4 {[%emt 0:00:19]} Re8 {[%emt 0:00:16]} 16. h3 {[%emt 0:
00:23]} Rb8 {[%emt 0:01:03]} 17. Bf1 {[%emt 0:00:26]} Qc7 {[%emt 0:01:43]} 18.
Qd3 {[%emt 0:00:41]} Bb7 {[%emt 0:00:58]} 19. Be3 {[%emt 0:01:02]} Re7 {
[%emt 0:00:34]} 20. f4 {[%emt 0:00:27]} Qd7 {[%emt 0:00:59]} 21. Bf2 {[%emt 0:
00:18]} Qe8 {[%emt 0:00:10]} 22. Bg2 {[%emt 0:01:27]} Nd7 {[%emt 0:00:50]} 23.
e5 {[%emt 0:00:48]} dxe5 {[%emt 0:00:31]} 24. d6 {[%emt 0:00:03]} Re6 {[%emt 0:
00:19]} 25. Bxb7 {[%emt 0:00:07]} Rxb7 {[%emt 0:00:06]} 26. Qxa6 {[%emt 0:00:
55]} Rb8 {[%emt 0:00:49]} 27. Qd3 {[%emt 0:01:16]} exf4 {[%emt 0:01:20]} 28.
gxf4 {[%emt 0:00:03]} Rd8 {[%emt 0:00:22]} 29. Nb5 {[%emt 0:00:31]} Nf6 {
[%emt 0:00:23]} 30. Rxe6 {[%emt 0:00:20]} Qxe6 {[%emt 0:00:08]} 31. Re1 {
[%emt 0:00:02]} Qd7 {[%emt 0:00:20]} 32. Bh4 {[%emt 0:00:39]} Re8 {[%emt 0:00:
08]} 33. Rxe8+ {[%emt 0:00:14]} Nxe8 34. Be7 {[%emt 0:00:25]} Bxb2 {[%emt 0:00:
17]} 35. Kh2 {[%emt 0:00:07]} Bf6 {[%emt 0:01:42]} 36. Qe4 {[%emt 0:00:59]}
Bxe7 {[%emt 0:03:15]} 37. dxe7 {[%emt 0:00:03]} f6 {[%emt 0:00:12]} 38. Kg3 {
[%emt 0:00:47]} Kf7 {[%emt 0:00:10]} 39. Nc3 {[%emt 0:00:01]} Nd6 {[%emt 0:00:
25]} 40. Qd5+ {[%emt 0:00:26]} Kxe7 {[%emt 0:00:11]} 41. Kf2 {[%emt 0:00:02]}
Qxh3 {[%emt 0:00:34]} 42. Ne2 {[%emt 0:00:01]} Qe6 {[%emt 0:00:31]} 43. Qa8 {
[%emt 0:00:07]} Ne4+ {[%emt 0:00:23]} 44. Kf3 {[%emt 0:00:25]} Qh3+ {[%emt 0:
00:08]} 0-1

[Event "European Rapid Championship 2021"]
[Site "Katowice"]
[Date "2021.12.19"]
[Round "11.28"]
[White "Sotsky, Alexander"]
[Black "Jagodzinski, Piotr"]
[Result "0-1"]
[ECO "D00"]
[WhiteElo "2333"]
[BlackElo "2145"]
[Annotator "NA"]
[PlyCount "62"]
[EventDate "2021.12.18"]
[EventType "swiss"]
[EventCountry "POL"]
[SourceTitle "playchess.com"]
[Source "ChessBase"]
[SourceQuality "1"]
[TimeControl "900+10"]

1. d4 {[%emt 0:00:05]} d5 {[%emt 0:00:02]} 2. Bg5 {[%emt 0:00:01]} c6 {[%emt 0:
00:45]} 3. c3 {[%emt 0:00:00]} Qc7 {[%emt 0:00:13]} 4. e3 {[%emt 0:00:07]} Bf5
{[%emt 0:00:10]} 5. Bd3 {[%emt 0:00:10]} Bxd3 {[%emt 0:00:07]} 6. Qxd3 {
[%emt 0:00:01]} Nd7 {[%emt 0:00:04]} 7. f4 {[%emt 0:00:03]} e6 {[%emt 0:00:18]}
8. Nf3 {[%emt 0:00:01]} Ne7 {[%emt 0:01:01]} 9. Bxe7 Bxe7 {[%emt 0:00:02]} 10.
Nbd2 {[%emt 0:00:16]} h6 {[%emt 0:00:12]} 11. O-O {[%emt 0:00:09]} g5 {[%emt 0:
00:04]} 12. Ne5 {[%emt 0:00:04]} f5 {[%emt 0:02:17]} 13. b4 {[%emt 0:00:58]}
Nf6 {[%emt 0:00:20]} 14. a3 {[%emt 0:00:55]} Rg8 {[%emt 0:00:08]} 15. Qe2 {
[%emt 0:02:40]} Bd6 {[%emt 0:01:13]} 16. Rfc1 {[%emt 0:00:37]} gxf4 {[%emt 0:
00:20]} 17. exf4 {[%emt 0:00:03]} Bxe5 {[%emt 0:00:02]} 18. fxe5 {[%emt 0:00:
10]} Ne4 {[%emt 0:00:00]} 19. Nxe4 {[%emt 0:00:22]} dxe4 {[%emt 0:00:13]} 20.
Qc4 {[%emt 0:04:21]} Qd7 {[%emt 0:00:11]} 21. a4 {[%emt 0:00:22]} O-O-O {
[%emt 0:02:18]} 22. b5 {[%emt 0:03:17]} Qd5 {[%emt 0:00:01]} 23. Qe2 {[%emt 0:
00:01]} f4 {[%emt 0:00:39]} 24. Rc2 {[%emt 0:01:18]} c5 {[%emt 0:00:40]} 25.
Re1 {[%emt 0:01:05]} e3 {[%emt 0:00:05]} 26. a5 {[%emt 0:01:01]} Qe4 {[%emt 0:
00:15]} 27. a6 f3 {[%emt 0:00:13]} 28. axb7+ {[%emt 0:00:15]} Kb8 {[%emt 0:00:
01]} 29. Qxe3 {[%emt 0:00:34]} Qxc2 {[%emt 0:00:03]} 30. Qxf3 {[%emt 0:00:01]}
Rdf8 {[%emt 0:00:05]} 31. Qc6 {[%emt 0:00:03]} Qf2+ {[%emt 0:00:01]} 0-1

[Event "European Rapid Championship 2021"]
[Site "Katowice"]
[Date "2021.12.19"]
[Round "11.28"]
[White "Zakrzewski, Marek"]
[Black "Karolczuk, Iwo"]
[Result "0-1"]
[ECO "C58"]
[WhiteElo "2239"]
[BlackElo "2007"]
[Annotator "NA"]
[PlyCount "72"]
[EventDate "2021.12.18"]
[EventType "swiss"]
[EventCountry "POL"]
[SourceTitle "playchess.com"]
[Source "ChessBase"]
[SourceQuality "1"]
[TimeControl "900+10"]

1. e4 {[%emt 0:00:03]} e5 {[%emt 0:00:07]} 2. Nf3 {[%emt 0:00:03]} Nc6 {
[%emt 0:00:02]} 3. Bc4 {[%emt 0:00:03]} Nf6 {[%emt 0:00:14]} 4. Ng5 {[%emt 0:
00:02]} d5 {[%emt 0:00:07]} 5. exd5 {[%emt 0:00:03]} Na5 {[%emt 0:00:02]} 6.
Bb5+ {[%emt 0:00:02]} c6 7. dxc6 {[%emt 0:00:02]} bxc6 {[%emt 0:00:04]} 8. Bd3
{[%emt 0:00:03]} Bd6 {[%emt 0:00:59]} 9. O-O {[%emt 0:00:32]} O-O {[%emt 0:00:
05]} 10. Re1 {[%emt 0:01:33]} h6 {[%emt 0:01:40]} 11. Nf3 {[%emt 0:00:34]} Bg4
{[%emt 0:00:28]} 12. h3 {[%emt 0:00:30]} Bh5 {[%emt 0:00:16]} 13. Nc3 {[%emt 0:
02:12]} Nd5 {[%emt 0:01:15]} 14. g4 {[%emt 0:03:56]} Bg6 {[%emt 0:00:04]} 15.
Nxe5 {[%emt 0:00:35]} Qf6 {[%emt 0:03:40]} 16. Nxd5 {[%emt 0:03:36]} cxd5 {
[%emt 0:00:12]} 17. Nf3 {[%emt 0:01:32]} Bxd3 {[%emt 0:00:56]} 18. cxd3 {
[%emt 0:00:01]} Rfe8 {[%emt 0:04:15]} 19. Rxe8+ {[%emt 0:00:50]} Rxe8 {[%emt 0:
00:02]} 20. d4 {[%emt 0:00:05]} Nc6 {[%emt 0:00:32]} 21. d3 {[%emt 0:01:45]}
Nxd4 {[%emt 0:00:04]} 22. Nxd4 {[%emt 0:00:02]} Qxd4 {[%emt 0:00:01]} 23. Be3 {
[%emt 0:00:14]} Rxe3 {[%emt 0:00:52]} 24. fxe3 {[%emt 0:00:01]} Qxe3+ {[%emt 0:
00:02]} 25. Kf1 {[%emt 0:00:20]} Qxh3+ {[%emt 0:00:20]} 26. Ke2 {[%emt 0:00:31]
} Bf4 {[%emt 0:01:18]} 27. Qg1 {[%emt 0:00:04]} h5 {[%emt 0:01:05]} 28. Rf1 {
[%emt 0:00:03]} g5 {[%emt 0:00:03]} 29. gxh5 {[%emt 0:00:19]} Qxh5+ {[%emt 0:
00:01]} 30. Ke1 {[%emt 0:00:02]} Qg6 {[%emt 0:00:43]} 31. Qd4 {[%emt 0:00:12]}
Qe6+ {[%emt 0:00:07]} 32. Kd1 {[%emt 0:00:09]} Qg4+ {[%emt 0:00:03]} 33. Kc2 {
[%emt 0:00:15]} Qe2+ {[%emt 0:00:02]} 34. Kb3 {[%emt 0:00:01]} Qxf1 {[%emt 0:
00:02]} 35. Qxd5 {[%emt 0:00:06]} Qe2 {[%emt 0:00:33]} 36. a4 {[%emt 0:00:27]}
Qe6 {[%emt 0:00:04]} 0-1

[Event "European Rapid Championship 2021"]
[Site "Katowice"]
[Date "2021.12.19"]
[Round "11.29"]
[White "Kuegel, Tobias"]
[Black "Gerasimenyuk, Mikhail"]
[Result "0-1"]
[ECO "B10"]
[WhiteElo "2242"]
[BlackElo "1984"]
[Annotator "NA"]
[PlyCount "61"]
[EventDate "2021.12.18"]
[EventType "swiss"]
[EventCountry "POL"]
[SourceTitle "playchess.com"]
[Source "ChessBase"]
[SourceQuality "1"]
[TimeControl "900+10"]

1. e4 {[%emt 0:00:01]} c6 {[%emt 0:00:01]} 2. Nc3 {[%emt 0:00:02]} d5 {[%emt 0:
00:01]} 3. Nf3 {[%emt 0:00:04]} dxe4 {[%emt 0:00:02]} 4. Nxe4 {[%emt 0:00:01]}
Nf6 {[%emt 0:00:02]} 5. Qe2 {[%emt 0:00:02]} Bf5 {[%emt 0:00:09]} 6. Nxf6+ {
[%emt 0:00:09]} gxf6 {[%emt 0:00:02]} 7. d4 {[%emt 0:00:32]} Nd7 {[%emt 0:00:
41]} 8. Nh4 {[%emt 0:00:33]} Be6 {[%emt 0:00:22]} 9. Be3 {[%emt 0:01:05]} Qa5+
{[%emt 0:00:13]} 10. c3 {[%emt 0:00:38]} Nb6 {[%emt 0:00:22]} 11. g3 {[%emt 0:
02:18]} Nc4 {[%emt 0:01:14]} 12. Bf4 {[%emt 0:00:35]} O-O-O {[%emt 0:00:14]}
13. Bg2 {[%emt 0:00:37]} Rxd4 {[%emt 0:01:02]} 14. O-O {[%emt 0:00:33]} Rxf4 {
[%emt 0:01:23]} 15. gxf4 {[%emt 0:00:24]} Rg8 {[%emt 0:00:30]} 16. Kh1 {
[%emt 0:00:57]} Nd6 {[%emt 0:00:51]} 17. Rg1 {[%emt 0:02:25]} Bc4 {[%emt 0:01:
57]} 18. Qe3 {[%emt 0:01:56]} Kc7 {[%emt 0:00:34]} 19. b3 {[%emt 0:00:36]} Be6
{[%emt 0:00:07]} 20. Bh3 {[%emt 0:01:16]} Qd5+ {[%emt 0:00:44]} 21. Rg2 {
[%emt 0:00:59]} Bxh3 {[%emt 0:02:35]} 22. Qxh3 {[%emt 0:00:07]} Ne4 {[%emt 0:
00:09]} 23. Qf3 {[%emt 0:00:34]} Rxg2 {[%emt 0:00:35]} 24. Nxg2 {[%emt 0:00:34]
} f5 {[%emt 0:00:43]} 25. Kg1 {[%emt 0:00:29]} e6 {[%emt 0:00:26]} 26. Rd1 {
[%emt 0:00:45]} Qc5 {[%emt 0:00:24]} 27. c4 {[%emt 0:00:16]} Qa3 {[%emt 0:00:
55]} 28. Qh5 {[%emt 0:00:15]} Bc5 {[%emt 0:00:11]} 29. Qxf7+ {[%emt 0:00:10]}
Kb6 {[%emt 0:00:01]} 30. Qd7 {[%emt 0:01:01]} Qxa2 {[%emt 0:00:37]} 31. b4 0-1

[Event "European Rapid Championship 2021"]
[Site "Katowice"]
[Date "2021.12.19"]
[Round "11.29"]
[White "Praczukowski, Stanislaw"]
[Black "Janaszak, Dawid"]
[Result "0-1"]
[ECO "B38"]
[WhiteElo "2082"]
[BlackElo "2328"]
[Annotator "NA"]
[PlyCount "76"]
[EventDate "2021.12.18"]
[EventType "swiss"]
[EventCountry "POL"]
[SourceTitle "playchess.com"]
[Source "ChessBase"]
[SourceQuality "1"]
[TimeControl "900+10"]

1. e4 {[%emt 0:00:03]} c5 {[%emt 0:00:02]} 2. Nf3 {[%emt 0:00:02]} Nc6 {
[%emt 0:00:03]} 3. d4 {[%emt 0:00:02]} cxd4 {[%emt 0:00:01]} 4. Nxd4 {[%emt 0:
00:02]} g6 {[%emt 0:00:05]} 5. c4 {[%emt 0:00:04]} Bg7 {[%emt 0:00:25]} 6. Be3
{[%emt 0:00:03]} Qb6 {[%emt 0:00:04]} 7. Nb3 {[%emt 0:01:11]} Qd8 {[%emt 0:00:
11]} 8. Nd4 {[%emt 0:00:11]} Nf6 {[%emt 0:00:22]} 9. Nc3 {[%emt 0:00:05]} d6 {
[%emt 0:00:19]} 10. Be2 {[%emt 0:00:11]} Bd7 {[%emt 0:00:30]} 11. O-O {[%emt 0:
00:15]} Nxd4 {[%emt 0:00:18]} 12. Bxd4 {[%emt 0:00:03]} O-O {[%emt 0:00:08]}
13. h3 {[%emt 0:00:17]} Bc6 {[%emt 0:00:29]} 14. Qc2 {[%emt 0:00:12]} Nd7 {
[%emt 0:00:43]} 15. Bxg7 {[%emt 0:00:14]} Kxg7 {[%emt 0:00:01]} 16. Rfd1 {
[%emt 0:01:04]} Qb6 {[%emt 0:01:08]} 17. b3 {[%emt 0:00:32]} f5 {[%emt 0:01:03]
} 18. exf5 {[%emt 0:01:10]} gxf5 {[%emt 0:00:39]} 19. Bd3 {[%emt 0:00:30]} Qc5
{[%emt 0:02:49]} 20. Re1 {[%emt 0:00:13]} Ne5 {[%emt 0:00:48]} 21. a3 {[%emt 0:
00:30]} a5 {[%emt 0:00:07]} 22. Rab1 {[%emt 0:00:53]} Rf6 {[%emt 0:02:58]} 23.
b4 {[%emt 0:00:12]} axb4 {[%emt 0:00:08]} 24. axb4 {[%emt 0:00:01]} Qd4 {
[%emt 0:00:11]} 25. b5 {[%emt 0:04:51]} Nxd3 {[%emt 0:03:03]} 26. Rxe7+ {
[%emt 0:01:26]} Kf8 {[%emt 0:00:06]} 27. Re3 {[%emt 0:00:02]} Be4 {[%emt 0:00:
18]} 28. Nd5 {[%emt 0:00:57]} Rg6 {[%emt 0:00:18]} 29. g3 {[%emt 0:00:28]} Ne5
{[%emt 0:00:24]} 30. Qd1 {[%emt 0:00:20]} Qxd1+ {[%emt 0:00:18]} 31. Rxd1 {
[%emt 0:00:01]} Nxc4 {[%emt 0:00:30]} 32. Rc3 {[%emt 0:00:01]} Ne5 {[%emt 0:00:
30]} 33. Nc7 {[%emt 0:00:00]} Ra2 {[%emt 0:00:22]} 34. b6 {[%emt 0:00:30]} f4
35. g4 h5 {[%emt 0:00:38]} 36. Nb5 {[%emt 0:00:25]} hxg4 {[%emt 0:00:05]} 37.
h4 {[%emt 0:00:25]} g3 {[%emt 0:00:04]} 38. fxg3 {[%emt 0:00:01]} Nf3+ {
[%emt 0:00:19]} 0-1

[Event "European Rapid Championship 2021"]
[Site "Katowice"]
[Date "2021.12.19"]
[Round "11.30"]
[White "Wisniewski, Michal"]
[Black "Zgadzaj, Rafal"]
[Result "1/2-1/2"]
[ECO "A14"]
[WhiteElo "2248"]
[BlackElo "2087"]
[Annotator "NA"]
[PlyCount "88"]
[EventDate "2021.12.18"]
[EventType "swiss"]
[EventCountry "POL"]
[SourceTitle "playchess.com"]
[Source "ChessBase"]
[SourceQuality "1"]
[TimeControl "900+10"]

1. Nf3 {[%emt 0:00:02]} Nf6 {[%emt 0:00:11]} 2. c4 {[%emt 0:00:02]} e6 {
[%emt 0:00:02]} 3. g3 {[%emt 0:00:02]} d5 {[%emt 0:00:05]} 4. Bg2 {[%emt 0:00:
01]} Be7 {[%emt 0:00:04]} 5. O-O {[%emt 0:00:03]} O-O {[%emt 0:00:19]} 6. b3 {
[%emt 0:00:01]} c5 {[%emt 0:00:18]} 7. Bb2 {[%emt 0:00:03]} Nc6 {[%emt 0:00:11]
} 8. e3 {[%emt 0:00:05]} b6 {[%emt 0:00:42]} 9. Nc3 {[%emt 0:00:03]} Bb7 {
[%emt 0:00:28]} 10. cxd5 {[%emt 0:00:04]} Nxd5 {[%emt 0:00:30]} 11. Nxd5 Qxd5 {
[%emt 0:00:18]} 12. Ne5 {[%emt 0:00:03]} Qd6 {[%emt 0:00:13]} 13. Nc4 {[%emt 0:
01:06]} Qd7 {[%emt 0:00:54]} 14. Qg4 {[%emt 0:00:05]} g6 {[%emt 0:00:30]} 15.
d4 {[%emt 0:00:38]} b5 {[%emt 0:01:04]} 16. d5 {[%emt 0:00:24]} bxc4 {[%emt 0:
03:57]} 17. dxc6 {[%emt 0:00:02]} Bxc6 {[%emt 0:00:01]} 18. Bxc6 {[%emt 0:00:
02]} Qxc6 {[%emt 0:00:03]} 19. Qxc4 {[%emt 0:00:02]} Rfd8 {[%emt 0:01:10]} 20.
Rac1 {[%emt 0:00:03]} Qd5 {[%emt 0:00:43]} 21. Qxd5 {[%emt 0:01:22]} Rxd5 {
[%emt 0:00:39]} 22. Rc2 {[%emt 0:00:03]} a5 {[%emt 0:01:06]} 23. e4 {[%emt 0:
00:25]} Rd3 {[%emt 0:00:35]} 24. Rc4 {[%emt 0:00:58]} Rd2 {[%emt 0:02:59]} 25.
Rb1 {[%emt 0:00:05]} h5 {[%emt 0:00:34]} 26. h4 {[%emt 0:00:02]} Kf8 {[%emt 0:
00:15]} 27. Ra4 {[%emt 0:00:02]} Ke8 {[%emt 0:00:16]} 28. Be5 {[%emt 0:00:42]}
Kd7 {[%emt 0:00:40]} 29. Rb2 {[%emt 0:00:01]} Rxb2 {[%emt 0:00:07]} 30. Bxb2 {
[%emt 0:00:02]} Kc6 {[%emt 0:00:06]} 31. Bc3 {[%emt 0:00:01]} Kb5 {[%emt 0:00:
14]} 32. Kf1 {[%emt 0:00:05]} Bd6 {[%emt 0:00:13]} 33. e5 {[%emt 0:00:03]} Bc7
{[%emt 0:00:04]} 34. Rf4 {[%emt 0:00:02]} Rf8 {[%emt 0:00:27]} 35. Ke2 {
[%emt 0:00:01]} Kc6 {[%emt 0:00:06]} 36. Ra4 {[%emt 0:00:11]} Ra8 {[%emt 0:00:
15]} 37. Kd3 {[%emt 0:00:16]} Kd5 {[%emt 0:00:02]} 38. f4 {[%emt 0:00:03]} Bb6
{[%emt 0:00:07]} 39. Be1 {[%emt 0:00:15]} Ra7 {[%emt 0:00:06]} 40. a3 {[%emt 0:
00:17]} Kc6 {[%emt 0:00:20]} 41. Kc4 {[%emt 0:00:07]} Rd7 {[%emt 0:00:06]} 42.
Bc3 {[%emt 0:00:02]} Ra7 {[%emt 0:00:08]} 43. Be1 {[%emt 0:00:09]} Rd7 {
[%emt 0:00:01]} 44. Bc3 {[%emt 0:00:03]} Ra7 {[%emt 0:00:01]} 1/2-1/2